[Event "Amsterdam Chess Open 2024"]
[Site "Amsterdam"]
[Date "2024.11.01"]
[Round "1.25"]
[White "Thomas Huften"]
[Black "Schebek, Paul"]
[Result "0-1"]
[ECO "D92"]
[WhiteElo "1781"]
[BlackElo "1696"]
[Annotator "NA RC"]
[PlyCount "146"]
[EventDate "2024.10.31"]
[EventType "swiss"]
[EventCountry "NED"]
[SourceTitle "playchess.com"]
[Source "ChessBase"]
[SourceQuality "1"]
[TimeControl "5400+30"]

1. Nf3 {[%emt 0:00:04]} d5 {[%emt 0:00:13]} 2. c4 {[%emt 0:00:18]} c6 {[%emt 0:00:40]} 3. d4 {[%emt 0:01:10]} Nf6 {[%emt 0:00:39]} 4. Nc3 {[%emt 0:00:52]} g6 {[%emt 0:04:15]} 5. Bf4 {[%emt 0:07:42]} Bg7 {[%emt 0:00:29]} 6. e3 {[%emt 0:05:33]} Nbd7 {[%emt 0:05:19]} 7. Rc1 {[%emt 0:06:06]} e6 {[%emt 0:02:16]} 8. Qc2 {[%emt 0:14:34]} O-O {[%emt 0:05:39]} 9. cxd5 {[%emt 0:05:00]} exd5 {[%emt 0:00:45]} 10. Bd3 {[%emt 0:04:26]} Re8 {[%emt 0:09:58]} 11. O-O {[%emt 0:01:23]} Nf8 {[%emt 0:18:32]} 12. Rfe1 {[%emt 0:12:45]} Be6 {[%emt 0:05:38]} 13. Na4 {[%emt 0:07:41]} N8d7 {[%emt 0:04:25]} 14. h3 {[%emt 0:05:08]} Rc8 {[%emt 0:05:43]} 15. Ne5 {[%emt 0:02:03]} Qe7 {[%emt 0:08:28]} 16. Qb3 {[%emt 0:04:26]} Nxe5 {[%emt 0:01:05]} 17. Bxe5 {[%emt 0:01:12]} Ne4 {[%emt 0:07:28]} 18. Bxg7 {[%emt 0:04:23]} Kxg7 {[%emt 0:00:12]} 19. f3 {[%emt 0:05:15]} Nd6 {[%emt 0:01:02]} 20. Nc5 {[%emt 0:01:39]} Rc7 {[%emt 0:03:53]} 21. Nxe6+ {[%emt 0:01:02]} Qxe6 {[%emt 0:00:09]} 22. Re2 {[%emt 0:01:36]} f5 {[%emt 0:02:44]} 23. Rce1 {[%emt 0:01:03]} Rce7 {[%emt 0:01:00]} 24. Qc3 {[%emt 0:00:51]} Qf6 {[%emt 0:02:46]} 25. Qc5 {[%emt 0:01:10]} a6 {[%emt 0:00:53]} 26. Qc2 {[%emt 0:00:28]} f4 {[%emt 0:05:20]} 27. e4 {[%emt 0:02:27]} Qxd4+ {[%emt 0:00:09]} 28. Kf1 {[%emt 0:00:28]} dxe4 {[%emt 0:00:41]} 29. Bxe4 {[%emt 0:00:26]} Nxe4 {[%emt 0:00:26]} 30. Rxe4 {[%emt 0:00:33]} Rxe4 {[%emt 0:00:37]} 31. Rxe4 {[%emt 0:00:20]} Rxe4 {[%emt 0:00:06]} 32. fxe4 {[%emt 0:00:33]} Kf6 {[%emt 0:01:24]} 33. Qb3 {[%emt 0:01:59]} b5 {[%emt 0:00:34]} 34. Qg8 {[%emt 0:00:30]} Qd1+ {[%emt 0:00:50]} 35. Kf2 {[%emt 0:00:08]} Qd2+ {[%emt 0:00:15]} 36. Kg1 {[%emt 0:00:14]} Qe3+ {[%emt 0:00:15]} 37. Kh2 {[%emt 0:00:16]} Qg3+ {[%emt 0:01:09]} 38. Kg1 {[%emt 0:00:06]} Qe1+ {[%emt 0:00:02]} 39. Kh2 {[%emt 0:00:03]} Qxe4 {[%emt 0:02:30]} 40. Qf8+ {[%emt 0:01:50]} Ke5 {[%emt 0:00:39]} 41. Qe7+ {[%emt 0:01:03]} Kd4 {[%emt 0:00:23]} 42. Qb4+ {[%emt 0:00:06]} Ke3 {[%emt 0:00:19]} 43. Qe1+ {[%emt 0:00:20]} Kd4 {[%emt 0:00:21]} 44. Qd2+ {[%emt 0:00:57]} Ke5 {[%emt 0:00:11]} 45. Qc3+ {[%emt 0:00:14]} Kf5 {[%emt 0:00:23]} 46. Qc5+ {[%emt 0:00:23]} Qe5 {[%emt 0:00:31]} 47. Qf8+ {[%emt 0:00:40]} Kg5 {[%emt 0:00:12]} 48. Qd8+ {[%emt 0:00:29]} Kh5 {[%emt 0:00:08]} 49. Qd1+ {[%emt 0:01:09]} f3+ {[%emt 0:00:26]} 50. Kg1 {[%emt 0:00:25]} Qe2 {[%emt 0:01:14]} 51. Qxe2 {[%emt 0:01:56]} fxe2 {[%emt 0:00:04]} 52. Kf2 {[%emt 0:00:01]} Kh4 {[%emt 0:00:11]} 53. Kxe2 {[%emt 0:00:12]} Kg3 {[%emt 0:00:05]} 54. Kf1 {[%emt 0:00:48]} c5 {[%emt 0:00:06]} 55. a3 {[%emt 0:00:43]} a5 {[%emt 0:01:04]} 56. b3 {[%emt 0:00:42]} c4 {[%emt 0:00:26]} 57. bxc4 {[%emt 0:00:12]} bxc4 {[%emt 0:00:07]} 58. a4 {[%emt 0:00:22]} h5 {[%emt 0:00:34]} 59. h4 {[%emt 0:00:49]} Kxh4 {[%emt 0:00:14]} 60. Kf2 {[%emt 0:00:06]} c3 {[%emt 0:00:15]} 61. Ke3 {[%emt 0:00:20]} Kg3 {[%emt 0:00:10]} 62. Kd3 {[%emt 0:00:04]} Kxg2 {[%emt 0:00:07]} 63. Kxc3 {[%emt 0:00:08]} h4 {[%emt 0:00:09]} 64. Kc4 {[%emt 0:00:04]} h3 {[%emt 0:00:08]} 65. Kb5 {[%emt 0:00:14]} h2 {[%emt 0:00:08]} 66. Kxa5 {[%emt 0:00:03]} h1=Q {[%emt 0:00:10]} 67. Kb6 {[%emt 0:00:08]} Qb1+ {[%emt 0:00:16]} 68. Ka6 {[%emt 0:00:13]} g5 {[%emt 0:00:33]} 69. a5 {[%emt 0:00:07]} g4 {[%emt 0:00:13]} 70. Ka7 {[%emt 0:00:04]} g3 {[%emt 0:00:17]} 71. a6 {[%emt 0:00:06]} Qa2 {[%emt 0:00:11]} 72. Kb7 {[%emt 0:00:14]} Qxa6+ {[%emt 0:00:10]} 73. Kxa6 {[%emt 0:00:12]} Kf1 {[%emt 0:00:38]} 0-1

[Event "Amsterdam Chess Open 2024"]
[Site "Amsterdam"]
[Date "2024.11.01"]
[Round "1.26"]
[White "Samantha Hoogerwaard"]
[Black "Marnix Reemst"]
[Result "0-1"]
[ECO "B23"]
[WhiteElo "1510"]
[BlackElo "1700"]
[Annotator "NA RC"]
[PlyCount "60"]
[EventDate "2024.10.31"]
[EventType "swiss"]
[EventCountry "NED"]
[SourceTitle "playchess.com"]
[Source "ChessBase"]
[SourceQuality "1"]
[TimeControl "5400+30"]

1. e4 {[%emt 0:00:02]} c5 {[%emt 0:00:07]} 2. Nc3 {[%emt 0:00:10]} d6 {[%emt 0:00:17]} 3. d4 {[%emt 0:00:23]} cxd4 {[%emt 0:00:40]} 4. Qxd4 {[%emt 0:00:07]} e6 {[%emt 0:05:33]} 5. b3 {[%emt 0:01:27]} a6 {[%emt 0:01:59]} 6. Bb2 {[%emt 0:01:50]} Nc6 {[%emt 0:03:01]} 7. Qd2 {[%emt 0:01:27]} Nf6 {[%emt 0:04:39]} 8. O-O-O {[%emt 0:01:46]} b5 {[%emt 0:07:22]} 9. f3 {[%emt 0:06:20]} Bb7 {[%emt 0:07:03]} 10. g4 {[%emt 0:03:39]} Qc7 {[%emt 0:05:52]} 11. Bg2 {[%emt 0:11:51]} Rc8 {[%emt 0:08:38]} 12. Nge2 {[%emt 0:05:03]} Ne5 {[%emt 0:07:40]} 13. h4 {[%emt 0:06:29]} b4 {[%emt 0:02:38]} 14. Nb1 {[%emt 0:12:28]} Nexg4 {[%emt 0:06:28]} 15. Nd4 {[%emt 0:11:15]} Ne5 {[%emt 0:07:04]} 16. Qxb4 {[%emt 0:05:20]} d5 {[%emt 0:04:45]} 17. Qe1 {[%emt 0:02:07]} Nc6 {[%emt 0:02:23]} 18. Nxe6 {[%emt 0:06:14]} fxe6 {[%emt 0:00:59]} 19. exd5 {[%emt 0:00:20]} Qf4+ {[%emt 0:02:25]} 20. Nd2 {[%emt 0:01:38]} Nd4 {[%emt 0:01:27]} 21. Bxd4 {[%emt 0:02:55]} Qxd4 {[%emt 0:01:35]} 22. Qxe6+ {[%emt 0:03:54]} Kd8 {[%emt 0:01:08]} 23. Nc4 {[%emt 0:04:59]} Qa1+ {[%emt 0:03:36]} 24. Kd2 {[%emt 0:00:24]} Bb4+ {[%emt 0:00:38]} 25. Ke2 {[%emt 0:00:25]} Qc3 {[%emt 0:01:12]} 26. Rc1 {[%emt 0:03:42]} Re8 {[%emt 0:00:46]} 27. Rhd1 {[%emt 0:03:44]} Rxe6+ {[%emt 0:00:58]} 28. dxe6+ {[%emt 0:00:07]} Ke7 {[%emt 0:01:55]} 29. Rd3 {[%emt 0:01:07]} Rxc4 {[%emt 0:00:00]} 30. Rxc3 {[%emt 0:01:14]} Rxc3 {[%emt 0:00:48]} 0-1

[Event "Amsterdam Chess Open 2024"]
[Site "Amsterdam"]
[Date "2024.11.01"]
[Round "1.27"]
[White "Ruben Hage"]
[Black "Verheul, Martin"]
[Result "0-1"]
[ECO "C44"]
[WhiteElo "1700"]
[BlackElo "1509"]
[Annotator "NA RC"]
[PlyCount "104"]
[EventDate "2024.10.31"]
[EventType "swiss"]
[EventCountry "NED"]
[SourceTitle "playchess.com"]
[Source "ChessBase"]
[SourceQuality "1"]
[TimeControl "5400+30"]

1. e4 {[%emt 0:00:01]} e6 {[%emt 0:00:15]} 2. c4 {[%emt 0:00:02]} d5 {[%emt 0:00:44]} 3. exd5 {[%emt 0:00:17]} exd5 {[%emt 0:00:28]} 4. cxd5 {[%emt 0:00:07]} Qxd5 {[%emt 0:00:58]} 5. d4 {[%emt 0:00:07]} Nc6 {[%emt 0:01:04]} 6. Nf3 {[%emt 0:00:40]} Nf6 {[%emt 0:02:21]} 7. Nc3 {[%emt 0:02:38]} Bb4 {[%emt 0:02:50]} 8. Bd2 {[%emt 0:00:23]} Qd8 {[%emt 0:01:46]} 9. a3 {[%emt 0:03:10]} Ba5 {[%emt 0:01:27]} 10. Bg5 {[%emt 0:03:44]} O-O {[%emt 0:00:58]} 11. d5 {[%emt 0:00:47]} Bxc3+ {[%emt 0:05:05]} 12. bxc3 {[%emt 0:00:06]} Re8+ {[%emt 0:00:39]} 13. Be2 {[%emt 0:00:12]} Ne5 {[%emt 0:00:28]} 14. O-O {[%emt 0:00:25]} Qd6 {[%emt 0:03:46]} 15. c4 {[%emt 0:01:19]} Ne4 {[%emt 0:02:15]} 16. Qc2 {[%emt 0:02:53]} Nxf3+ {[%emt 0:02:02]} 17. Bxf3 {[%emt 0:00:27]} Nxg5 {[%emt 0:00:08]} 18. Be2 {[%emt 0:01:01]} Qe5 {[%emt 0:06:01]} 19. Bd3 {[%emt 0:01:20]} Bd7 {[%emt 0:00:37]} 20. h4 {[%emt 0:16:03]} Ne4 {[%emt 0:01:11]} 21. Rae1 {[%emt 0:01:27]} f5 {[%emt 0:00:32]} 22. c5 {[%emt 0:07:30]} c6 {[%emt 0:04:27]} 23. d6 {[%emt 0:00:39]} Kf8 {[%emt 0:01:25]} 24. Qc4 {[%emt 0:03:45]} Qxc5 {[%emt 0:07:48]} 25. Rxe4 {[%emt 0:00:33]} Qxc4 {[%emt 0:02:14]} 26. Rxc4 {[%emt 0:00:06]} Re5 {[%emt 0:00:38]} 27. Rd4 {[%emt 0:00:37]} c5 {[%emt 0:04:17]} 28. Rf4 {[%emt 0:05:23]} g6 {[%emt 0:00:59]} 29. Bc2 {[%emt 0:00:32]} Rae8 {[%emt 0:01:16]} 30. g4 {[%emt 0:01:07]} Kg7 {[%emt 0:03:22]} 31. a4 {[%emt 0:00:59]} b6 {[%emt 0:00:55]} 32. Kh2 {[%emt 0:01:22]} Rd5 {[%emt 0:02:57]} 33. Rg1 {[%emt 0:00:59]} Ree5 {[%emt 0:01:28]} 34. gxf5 {[%emt 0:02:49]} Bxf5 {[%emt 0:12:19]} 35. Bxf5 {[%emt 0:00:22]} Rxf5 {[%emt 0:00:07]} 36. Rxf5 {[%emt 0:00:12]} Rxf5 {[%emt 0:00:22]} 37. Kg3 {[%emt 0:00:05]} Rd5 {[%emt 0:00:15]} 38. Re1 {[%emt 0:00:04]} Rxd6 {[%emt 0:01:12]} 39. Re7+ {[%emt 0:00:06]} Kf6 {[%emt 0:01:11]} 40. Rxa7 {[%emt 0:00:39]} h5 {[%emt 0:00:26]} 41. Ra6 {[%emt 0:00:07]} Ke5 {[%emt 0:00:31]} 42. a5 {[%emt 0:00:07]} bxa5 {[%emt 0:00:55]} 43. Rxa5 {[%emt 0:00:02]} Kd4 {[%emt 0:00:35]} 44. Kf3 {[%emt 0:00:56]} c4 {[%emt 0:00:40]} 45. Ke2 {[%emt 0:00:11]} Re6+ {[%emt 0:00:53]} 46. Kd2 {[%emt 0:00:06]} c3+ {[%emt 0:01:05]} 47. Kd1 {[%emt 0:00:21]} Kc4 {[%emt 0:01:42]} 48. f4 {[%emt 0:02:15]} Rf6 {[%emt 0:01:19]} 49. Ra8 {[%emt 0:00:39]} Kd3 {[%emt 0:00:32]} 50. Ra4 {[%emt 0:00:57]} Re6 {[%emt 0:02:23]} 51. Ra3 {[%emt 0:01:13]} Re4 {[%emt 0:00:45]} 52. f5 {[%emt 0:00:13]} gxf5 {[%emt 0:00:18]} 0-1

[Event "Amsterdam Chess Open 2024"]
[Site "Amsterdam"]
[Date "2024.11.01"]
[Round "1.28"]
[White "Edwin de Vries"]
[Black "Tobias Pilz"]
[Result "0-1"]
[ECO "B01"]
[WhiteElo "1500"]
[BlackElo "1700"]
[Annotator "NA RC"]
[PlyCount "98"]
[EventDate "2024.10.31"]
[EventType "swiss"]
[EventCountry "NED"]
[SourceTitle "playchess.com"]
[Source "ChessBase"]
[SourceQuality "1"]
[TimeControl "5400+30"]

1. e4 {[%emt 0:00:07]} d5 {[%emt 0:00:13]} 2. exd5 {[%emt 0:00:07]} Qxd5 {[%emt 0:00:07]} 3. Nc3 {[%emt 0:00:07]} Qa5 {[%emt 0:00:27]} 4. Nf3 {[%emt 0:00:26]} e6 {[%emt 0:00:18]} 5. d4 {[%emt 0:00:33]} Nf6 {[%emt 0:00:15]} 6. Bd2 {[%emt 0:00:14]} c5 {[%emt 0:00:21]} 7. Nb5 {[%emt 0:01:50]} Qb6 {[%emt 0:00:03]} 8. a4 {[%emt 0:01:09]} Nc6 {[%emt 0:01:43]} 9. a5 {[%emt 0:00:44]} Qd8 {[%emt 0:00:09]} 10. Ne5 {[%emt 0:02:00]} cxd4 {[%emt 0:05:16]} 11. Bf4 {[%emt 0:01:55]} Nd5 {[%emt 0:03:37]} 12. Qf3 {[%emt 0:01:49]} Nxe5 {[%emt 0:19:01]} 13. Bxe5 {[%emt 0:00:44]} Bb4+ {[%emt 0:03:25]} 14. c3 {[%emt 0:00:51]} dxc3 {[%emt 0:00:48]} 15. bxc3 {[%emt 0:00:03]} Bf8 {[%emt 0:17:45]} 16. Be2 {[%emt 0:08:48]} a6 {[%emt 0:01:25]} 17. Na3 {[%emt 0:05:49]} Qxa5 {[%emt 0:03:11]} 18. O-O {[%emt 0:01:07]} Bxa3 {[%emt 0:05:24]} 19. c4 {[%emt 0:00:14]} Ne7 {[%emt 0:05:10]} 20. Bd6 {[%emt 0:00:27]} Nf5 {[%emt 0:08:14]} 21. Bxa3 {[%emt 0:00:38]} Nd4 {[%emt 0:02:38]} 22. Qd3 {[%emt 0:02:51]} Nxe2+ {[%emt 0:00:19]} 23. Qxe2 {[%emt 0:00:13]} Bd7 {[%emt 0:01:11]} 24. Qf3 {[%emt 0:00:30]} Qc7 {[%emt 0:00:56]} 25. Rab1 {[%emt 0:01:55]} Bc6 {[%emt 0:00:34]} 26. Qg4 {[%emt 0:00:07]} h5 {[%emt 0:01:21]} 27. Qh4 {[%emt 0:03:04]} Rh6 {[%emt 0:01:33]} 28. Rfd1 {[%emt 0:00:56]} g5 {[%emt 0:01:32]} 29. Qd4 {[%emt 0:00:16]} f6 {[%emt 0:05:27]} 30. Bd6 {[%emt 0:01:13]} Qd7 {[%emt 0:01:00]} 31. Qb6 {[%emt 0:00:26]} Rd8 {[%emt 0:01:01]} 32. c5 {[%emt 0:02:00]} g4 {[%emt 0:00:48]} 33. Re1 {[%emt 0:00:57]} h4 {[%emt 0:01:45]} 34. Qb3 {[%emt 0:00:08]} Kf7 {[%emt 0:00:40]} 35. Qc4 {[%emt 0:01:25]} Bd5 {[%emt 0:00:47]} 36. Qf4 {[%emt 0:00:33]} Rg6 {[%emt 0:00:55]} 37. Rbd1 {[%emt 0:01:39]} Qc6 {[%emt 0:01:10]} 38. Re5 {[%emt 0:02:15]} Re8 {[%emt 0:02:05]} 39. Rh5 {[%emt 0:00:36]} h3 {[%emt 0:00:43]} 40. Rh4 {[%emt 0:07:23]} Bb3 {[%emt 0:02:10]} 41. Rxg4 {[%emt 0:03:04]} Bxd1 {[%emt 0:00:20]} 42. Rxg6 {[%emt 0:00:21]} Kxg6 {[%emt 0:00:09]} 43. Qg3+ {[%emt 0:00:16]} Kf7 {[%emt 0:00:19]} 44. Qxh3 {[%emt 0:00:04]} Rg8 {[%emt 0:00:35]} 45. g3 {[%emt 0:00:16]} Qe4 {[%emt 0:00:43]} 46. Qh6 {[%emt 0:03:20]} a5 {[%emt 0:01:06]} 47. Qd2 {[%emt 0:00:13]} Bf3 {[%emt 0:00:37]} 48. Qxa5 {[%emt 0:00:10]} Qb1+ {[%emt 0:00:17]} 49. Qe1 {[%emt 0:00:24]} Qxe1# {[%emt 0:00:11]} 0-1

[Event "Amsterdam Chess Open 2024"]
[Site "Amsterdam"]
[Date "2024.11.01"]
[Round "1.29"]
[White "Boom, Harrie"]
[Black "Ilan Kapteijns"]
[Result "1-0"]
[ECO "B11"]
[WhiteElo "1696"]
[BlackElo "1500"]
[Annotator "NA RC"]
[PlyCount "107"]
[EventDate "2024.10.31"]
[EventType "swiss"]
[EventCountry "NED"]
[SourceTitle "playchess.com"]
[Source "ChessBase"]
[SourceQuality "1"]
[TimeControl "5400+30"]

1. e4 {[%emt 0:00:05]} c6 {[%emt 0:00:08]} 2. Nc3 {[%emt 0:00:18]} d5 {[%emt 0:00:18]} 3. Nf3 {[%emt 0:00:28]} Bg4 {[%emt 0:00:40]} 4. h3 {[%emt 0:00:51]} Bxf3 {[%emt 0:02:28]} 5. Qxf3 {[%emt 0:00:18]} Nf6 {[%emt 0:00:09]} 6. e5 {[%emt 0:03:20]} Nfd7 {[%emt 0:06:08]} 7. d4 {[%emt 0:01:08]} e6 {[%emt 0:00:56]} 8. Bf4 {[%emt 0:02:15]} Qb6 {[%emt 0:03:43]} 9. O-O-O {[%emt 0:02:53]} Bb4 {[%emt 0:04:14]} 10. Qe3 {[%emt 0:08:00]} c5 {[%emt 0:03:44]} 11. dxc5 {[%emt 0:00:55]} Nxc5 {[%emt 0:00:36]} 12. Bb5+ {[%emt 0:02:41]} Nc6 {[%emt 0:00:38]} 13. Bxc6+ {[%emt 0:00:15]} bxc6 {[%emt 0:00:41]} 14. Qd4 {[%emt 0:02:44]} Bxc3 {[%emt 0:01:11]} 15. Qxc3 {[%emt 0:00:43]} Ne4 {[%emt 0:01:00]} 16. Qe3 {[%emt 0:02:43]} Nxf2 {[%emt 0:03:17]} 17. Rhf1 {[%emt 0:00:50]} Nxd1 {[%emt 0:00:55]} 18. Rxd1 {[%emt 0:00:15]} Qxe3+ {[%emt 0:00:34]} 19. Bxe3 {[%emt 0:00:09]} O-O {[%emt 0:00:27]} 20. Bc5 {[%emt 0:02:01]} Rfd8 {[%emt 0:02:18]} 21. c3 {[%emt 0:02:31]} h6 {[%emt 0:01:48]} 22. Rd2 {[%emt 0:00:41]} f6 {[%emt 0:01:21]} 23. exf6 {[%emt 0:01:26]} gxf6 {[%emt 0:00:12]} 24. Be7 {[%emt 0:00:11]} Rd7 {[%emt 0:02:24]} 25. Bxf6 {[%emt 0:00:10]} Rf7 {[%emt 0:00:29]} 26. Be5 {[%emt 0:01:39]} Raf8 {[%emt 0:01:32]} 27. Bd4 {[%emt 0:01:31]} Rc8 {[%emt 0:04:01]} 28. b4 {[%emt 0:03:15]} a5 {[%emt 0:03:40]} 29. a3 {[%emt 0:02:08]} axb4 {[%emt 0:01:08]} 30. cxb4 {[%emt 0:02:04]} c5 {[%emt 0:06:29]} 31. Bxc5 {[%emt 0:02:19]} Rd7 {[%emt 0:05:41]} 32. Re2 {[%emt 0:06:16]} d4 {[%emt 0:03:05]} 33. Rxe6 {[%emt 0:04:29]} Kf7 {[%emt 0:04:43]} 34. Rxh6 {[%emt 0:04:39]} d3 {[%emt 0:00:59]} 35. Rh7+ {[%emt 0:02:04]} Ke6 {[%emt 0:00:47]} 36. Rxd7 {[%emt 0:00:24]} Kxd7 {[%emt 0:00:39]} 37. Kd2 {[%emt 0:00:08]} Rg8 {[%emt 0:00:30]} 38. Kxd3 {[%emt 0:01:53]} Rg3+ {[%emt 0:00:28]} 39. Ke4 {[%emt 0:01:48]} Rxg2 {[%emt 0:01:47]} 40. Kf4 {[%emt 0:01:34]} Kc6 {[%emt 0:04:47]} 41. a4 {[%emt 0:01:31]} Ra2 {[%emt 0:00:46]} 42. a5 {[%emt 0:00:08]} Kb5 {[%emt 0:00:51]} 43. h4 {[%emt 0:00:34]} Ra1 {[%emt 0:00:31]} 44. h5 {[%emt 0:00:51]} Rf1+ {[%emt 0:01:08]} 45. Kg5 {[%emt 0:00:45]} Rh1 {[%emt 0:09:48]} 46. Kg6 {[%emt 0:02:11]} Rh3 {[%emt 0:01:51]} 47. h6 {[%emt 0:00:35]} Rg3+ {[%emt 0:00:56]} 48. Kh7 {[%emt 0:00:39]} Rg2 {[%emt 0:00:22]} 49. Kh8 {[%emt 0:01:18]} Rg4 {[%emt 0:00:10]} 50. h7 {[%emt 0:00:11]} Rg2 {[%emt 0:00:05]} 51. Bf8 {[%emt 0:00:05]} Rg4 {[%emt 0:00:28]} 52. Bg7 {[%emt 0:01:13]} Rh4 {[%emt 0:02:19]} 53. Kg8 {[%emt 0:00:25]} Kxb4 {[%emt 0:03:05]} 54. a6 {[%emt 0:00:26]} 1-0

[Event "Amsterdam Chess Open 2024"]
[Site "Amsterdam"]
[Date "2024.11.01"]
[Round "1.30"]
[White "Maurice Visser"]
[Black "Witte, Phoebe"]
[Result "1/2-1/2"]
[ECO "B40"]
[WhiteElo "1350"]
[BlackElo "1619"]
[Annotator "NA RC"]
[PlyCount "85"]
[EventDate "2024.10.31"]
[EventType "swiss"]
[EventCountry "NED"]
[SourceTitle "playchess.com"]
[Source "ChessBase"]
[SourceQuality "1"]
[TimeControl "5400+30"]

1. e4 {[%emt 0:00:05]} e6 {[%emt 0:00:07]} 2. d4 {[%emt 0:00:09]} d5 {[%emt 0:00:07]} 3. Nd2 {[%emt 0:00:15]} Nf6 {[%emt 0:00:27]} 4. Bd3 {[%emt 0:00:44]} c5 {[%emt 0:01:26]} 5. Ngf3 {[%emt 0:01:01]} Nc6 {[%emt 0:02:48]} 6. exd5 {[%emt 0:05:12]} exd5 {[%emt 0:01:55]} 7. dxc5 {[%emt 0:02:49]} Bxc5 {[%emt 0:03:10]} 8. O-O {[%emt 0:01:40]} O-O {[%emt 0:00:34]} 9. Nb3 {[%emt 0:03:14]} Bd6 {[%emt 0:01:41]} 10. h3 {[%emt 0:02:39]} h6 {[%emt 0:03:22]} 11. Re1 {[%emt 0:02:52]} Re8 {[%emt 0:05:16]} 12. Bd2 {[%emt 0:04:46]} Bd7 {[%emt 0:07:47]} 13. Bc3 {[%emt 0:06:32]} Rxe1+ {[%emt 0:03:39]} 14. Qxe1 {[%emt 0:00:58]} Qe7 {[%emt 0:01:52]} 15. Qxe7 {[%emt 0:05:22]} Bxe7 {[%emt 0:00:16]} 16. Re1 {[%emt 0:02:34]} Bb4 {[%emt 0:04:10]} 17. Bxb4 {[%emt 0:07:34]} Nxb4 {[%emt 0:00:15]} 18. Nc1 {[%emt 0:01:01]} Re8 {[%emt 0:05:46]} 19. Rxe8+ {[%emt 0:03:27]} Bxe8 {[%emt 0:00:34]} 20. Nd4 {[%emt 0:03:00]} Bd7 {[%emt 0:04:36]} 21. a3 {[%emt 0:03:57]} Nc6 {[%emt 0:00:33]} 22. Nce2 {[%emt 0:02:31]} Kf8 {[%emt 0:03:05]} 23. f3 {[%emt 0:02:10]} Nh5 {[%emt 0:13:36]} 24. Kf2 {[%emt 0:04:25]} Nxd4 {[%emt 0:01:41]} 25. Nxd4 {[%emt 0:01:29]} Nf4 {[%emt 0:01:29]} 26. Bf5 {[%emt 0:04:32]} Ne6 {[%emt 0:02:50]} 27. c3 {[%emt 0:05:51]} Ke7 {[%emt 0:01:14]} 28. Bc2 {[%emt 0:02:25]} Kf6 {[%emt 0:01:54]} 29. Ke3 {[%emt 0:02:21]} Kg5 {[%emt 0:03:51]} 30. Bb3 {[%emt 0:03:12]} Bc6 {[%emt 0:01:50]} 31. g3 {[%emt 0:03:39]} Kf6 {[%emt 0:02:01]} 32. Nc2 {[%emt 0:02:24]} a5 {[%emt 0:04:22]} 33. c4 {[%emt 0:01:02]} dxc4 {[%emt 0:05:04]} 34. Bxc4 {[%emt 0:00:25]} Ke5 {[%emt 0:02:03]} 35. f4+ {[%emt 0:01:15]} Kf6 {[%emt 0:02:50]} 36. Nd4 {[%emt 0:00:55]} Nxd4 {[%emt 0:02:19]} 37. Kxd4 {[%emt 0:00:18]} Ke7 {[%emt 0:00:40]} 38. b4 {[%emt 0:01:11]} axb4 {[%emt 0:01:08]} 39. axb4 {[%emt 0:00:11]} f6 {[%emt 0:01:27]} 40. Bd5 {[%emt 0:00:52]} Kd6 {[%emt 0:00:50]} 41. Bxc6 {[%emt 0:00:39]} Kxc6 {[%emt 0:00:46]} 42. Kc4 {[%emt 0:01:13]} b5+ {[%emt 0:00:32]} 43. Kd4 {[%emt 0:00:45]} 1/2-1/2